fUSD/lending_fUSD_20240327
["ID","MTS","AMOUNT","RATE_DAILY","PERIOD"]
[320771861,1711552290050,-500.0,0.00054794,120]
[320771862,1711552290059,-505.60188997,0.00054794,120]
[320771863,1711552290069,-500.0,0.00054794,120]
[320771864,1711552290078,-502.58982315,0.00054794,120]
[320771865,1711552290088,-506.10115757,0.00054794,120]
[320771866,1711552290097,-500.0,0.00054794,120]
[320771867,1711552290108,-500.0,0.00054794,120]
[320771868,1711552290117,-500.0,0.00054794,120]
[320771869,1711552290126,-506.83295703,0.00054794,120]
[320771870,1711552290136,-500.0,0.00054794,120]
[320771871,1711552290146,-534.04,0.00054794,120]
[320771872,1711552290158,-500.0,0.00054794,120]
[320771873,1711552290167,-500.0,0.00054794,120]
[320771874,1711552290176,-500.0,0.00054794,120]
[320771875,1711552290187,-500.0,0.00054794,120]
[320771876,1711552290197,-554.14,0.00054794,120]
[320771877,1711552290207,-500.0,0.00054794,120]
[320771878,1711552290216,-504.09694338,0.00054794,120]
[320771879,1711552290227,-500.0,0.00054794,120]
[320771880,1711552290236,-764.34,0.00054794,120]
[320771881,1711552290246,-500.0,0.00054794,120]
[320771882,1711552290255,-500.0,0.00054794,120]
[320771883,1711552290265,-500.0,0.00054794,120]
[320771884,1711552290274,-500.0,0.00054794,120]
[320771885,1711552290284,-500.0,0.00054794,120]
[320771886,1711552290293,-500.0,0.00054794,120]
[320771887,1711552290303,-500.0,0.00054794,120]
[320771888,1711552290312,-500.0,0.00054794,120]
[320771889,1711552290321,-477.55420714,0.00054794,120]
[320771890,1711552290331,-500.0,0.00054794,120]
[320771891,1711552290340,-500.0,0.00054794,120]
[320771892,1711552290350,-500.0,0.00054794,120]
[320771893,1711552290361,-500.0,0.00054794,120]
[320771894,1711552290371,-500.0,0.00054794,120]
[320771895,1711552290380,-501.56089976,0.00054794,120]
[320771896,1711552290389,-500.0,0.00054794,120]
[320771897,1711552290398,-500.0,0.00054794,120]
[320771898,1711552290407,-500.0,0.00054794,120]
[320771899,1711552290417,-500.0,0.00054794,120]
[320771900,1711552290426,-553.63,0.00054794,120]
[320771901,1711552290436,-714.35,0.00054794,120]
[320771902,1711552290445,-151.0,0.00054794,120]
[320771903,1711552290454,-500.0,0.00054794,120]
[320771904,1711552290464,-500.0,0.00054794,120]
[320771905,1711552290473,-500.0,0.00054794,120]
[320771906,1711552290482,-308.99174139,0.00054794,120]
[320771907,1711552290492,-500.0,0.00054794,120]
[320771908,1711552290502,-500.0,0.00054794,120]
[320771909,1711552290512,-500.0,0.00054794,120]
[320771910,1711552290521,-693.92,0.00054794,120]
[320771911,1711552290532,-500.0,0.00054794,120]
[320771912,1711552290542,-500.0,0.00054794,120]
[320771913,1711552290551,-500.0,0.00054794,120]
[320771914,1711552290561,-500.0,0.00054794,120]
[320771915,1711552290571,-500.0,0.00054794,120]
[320771916,1711552290581,-540.63110852,0.00054794,120]
[320771917,1711552290591,-500.0,0.00054794,120]
[320771918,1711552290601,-500.0,0.00054794,120]
[320771919,1711552290613,-500.0,0.00054794,120]
[320771920,1711552290623,-500.0,0.00054794,120]
[320771921,1711552290632,-500.0,0.00054794,120]
[320771922,1711552290641,-500.0,0.00054794,120]
[320771923,1711552290651,-537.16385715,0.00054794,120]
[320771924,1711552290660,-500.0,0.00054794,120]
[320771925,1711552290669,-500.0,0.00054794,120]
[320771926,1711552290678,-500.0,0.00054794,120]
[320771927,1711552290687,-500.0,0.00054794,120]
[320771928,1711552290697,-500.0,0.00054794,120]
[320771929,1711552290707,-500.0,0.00054794,120]
[320771930,1711552290717,-500.0,0.00054794,120]
[320771931,1711552290726,-500.0,0.00054794,120]
[320771932,1711552290735,-500.0,0.00054794,120]
[320771933,1711552290745,-500.0,0.00054794,120]
[320771934,1711552290755,-500.0,0.00054794,120]
[320771935,1711552290764,-500.0,0.00054794,120]
[320771936,1711552290773,-500.0,0.00054794,120]
[320771937,1711552290782,-500.0,0.00054794,120]
[320771938,1711552290792,-500.0,0.00054794,120]
[320771939,1711552290801,-500.0,0.00054794,120]
[320771940,1711552290812,-500.0,0.00054794,120]
[320771941,1711552290821,-500.0,0.00054794,120]
[320771942,1711552290830,-500.0,0.00054794,120]
[320771943,1711552290840,-234.54,0.00054794,120]
[320771944,1711552290850,-504.25841622,0.00054794,30]
[320771945,1711552290861,-500.0,0.00054794,120]
[320771946,1711552290870,-500.0,0.00054794,120]
[320771947,1711552290879,-516.50263157,0.00054794,120]
[320771948,1711552290888,-500.0,0.00054794,120]
[320771949,1711552290898,-500.0,0.00054794,120]
[320771950,1711552290907,-500.0,0.00054794,120]
[320771951,1711552290916,-500.0,0.00054794,120]
[320771952,1711552290926,-500.0,0.00054794,120]
[320771953,1711552290935,-500.0,0.00054794,120]
[320771954,1711552290945,-503.44779938,0.00054794,120]
[320771955,1711552290955,-500.0,0.00054794,120]
[320771956,1711552290965,-500.0,0.00054794,120]
[320771957,1711552290974,-500.0,0.00054794,120]
[320771958,1711552290984,-500.0,0.00054794,120]
[320771959,1711552290993,-500.0,0.00054794,120]
[320771960,1711552291002,-500.0,0.00054794,120]
[320771961,1711552291012,-500.0,0.00054794,120]
[320771962,1711552291021,-500.0,0.00054794,120]
[320771963,1711552291030,-500.0,0.00054794,120]
[320771964,1711552291039,-500.0,0.00054794,120]
[320771965,1711552291049,-500.0,0.00054794,120]
[320771966,1711552291058,-430.020676,0.00054794,120]
[320771967,1711552291067,-500.0,0.00054794,120]
[320771968,1711552291076,-500.0,0.00054794,120]
[320771969,1711552291085,-151.62551007,0.00054794,120]
[320771970,1711552291094,-500.0,0.00054794,120]
[320771971,1711552291106,-160.17928934,0.00054794,120]
[320771972,1711552291115,-500.0,0.00054794,120]
[320771973,1711552291124,-500.0,0.00054794,120]
[320771974,1711552291133,-500.0,0.00054794,120]
[320771975,1711552291142,-500.0,0.00054794,120]
[320771976,1711552291155,-500.0,0.00054794,120]
[320771977,1711552291165,-500.0,0.00054794,120]
[320771978,1711552291175,-1985.45,0.00054794,120]
[320771979,1711552291184,-572.15729542,0.00054794,120]
[320771980,1711552291195,-500.0,0.00054794,120]
[320771981,1711552291205,-500.0,0.00054794,120]
[320771982,1711552291214,-500.0,0.00054794,120]
[320771983,1711552291223,-500.0,0.00054794,120]
[320771984,1711552291234,-745.68,0.00054794,120]
[320771985,1711552291243,-500.0,0.00054794,120]
[320771986,1711552291253,-500.0,0.00054794,120]
[320771987,1711552291262,-500.0,0.00054794,120]
[320771988,1711552291271,-500.0,0.00054794,120]
[320771989,1711552291282,-304.92640632,0.00054794,120]
[320771990,1711552291291,-939.69,0.00054794,120]
[320771991,1711552291301,-880.13,0.00054794,120]
[320771992,1711552291309,-500.0,0.00054794,120]
[320771993,1711552291320,-500.0,0.00054794,120]
[320771994,1711552291329,-500.0,0.00054794,120]
[320771995,1711552291338,-500.0,0.00054794,120]
[320771996,1711552291350,-500.0,0.00054794,120]
[320771997,1711552291360,-507.40918722,0.00054794,120]
[320771998,1711552291370,-500.0,0.00054794,120]
[320771999,1711552291381,-500.0,0.00054794,120]
[320772000,1711552291391,-500.0,0.00054794,120]
[320772001,1711552291401,-500.0,0.00054794,120]
[320772002,1711552291410,-500.0,0.00054794,120]
[320772003,1711552291420,-500.0,0.00054794,120]
[320772004,1711552291429,-926.59,0.00054794,120]
[320772005,1711552291439,-500.0,0.00054794,120]
[320772006,1711552291448,-500.0,0.00054794,120]
[320772007,1711552291458,-2564.16,0.00054794,120]
[320772008,1711552291468,-500.0,0.00054794,120]
[320772009,1711552291478,-500.0,0.00054794,120]
[320772010,1711552291487,-500.0,0.00054794,120]
[320772011,1711552291497,-500.0,0.00054794,120]
[320772012,1711552291506,-700.84,0.00054794,120]
[320772013,1711552291515,-2881.12,0.00054794,120]
[320772014,1711552291524,-500.0,0.00054794,120]
[320772015,1711552291533,-500.0,0.00054794,120]
[320772016,1711552291543,-500.0,0.00054794,120]
[320772017,1711552291552,-1973.63,0.00054794,120]
[320772018,1711552291562,-500.0,0.00054794,120]
[320772019,1711552291571,-500.0,0.00054794,120]
[320772020,1711552291580,-500.0,0.00054794,120]
[320772021,1711552291590,-500.0,0.00054794,120]
[320772022,1711552291599,-507.42816449,0.00054794,120]
[320772023,1711552291611,-1278.57,0.00054794,120]
[320772024,1711552291620,-500.0,0.00054794,120]
[320772025,1711552291629,-500.0,0.00054794,120]
[320772026,1711552291638,-500.0,0.00054794,120]
[320772027,1711552291648,-500.0,0.00054794,120]
[320772028,1711552291657,-500.0,0.00054794,120]
[320772029,1711552291667,-500.0,0.00054794,120]
[320772030,1711552291676,-500.0,0.00054794,120]
[320772031,1711552291686,-500.0,0.00054794,120]
[320772032,1711552291695,-510.53693926,0.00054794,120]
[320772033,1711552291705,-961.96,0.00054794,120]
[320772034,1711552291714,-500.0,0.00054794,120]
[320772035,1711552291723,-500.0,0.00054794,120]
[320772036,1711552291732,-509.46402631,0.00054794,120]
[320772037,1711552291740,-507.54387245,0.00054794,120]
[320772038,1711552291750,-718.68,0.00054794,120]
[320772039,1711552291759,-998.81,0.00054794,120]
[320772040,1711552291768,-500.0,0.00054794,120]
[320772041,1711552291777,-500.0,0.00054794,120]
[320772042,1711552291787,-1204.82,0.00054794,120]
[320772043,1711552291796,-500.0,0.00054794,120]
[320772044,1711552291806,-500.0,0.00054794,120]
[320772045,1711552291816,-500.0,0.00054794,120]
[320772046,1711552291825,-500.0,0.00054794,120]
[320772047,1711552291835,-626.55,0.00054794,120]
[320772048,1711552291845,-500.0,0.00054794,120]
[320772049,1711552291856,-500.0,0.00054794,120]
[320772050,1711552291866,-500.0,0.00054794,120]
[320772051,1711552291875,-2610.08,0.00054794,120]
[320772052,1711552291885,-1048.52,0.00054794,120]
[320772053,1711552291895,-500.0,0.00054794,120]
[320772054,1711552291904,-500.0,0.00054794,120]
[320772055,1711552291913,-551.14,0.00054794,85]
[320772056,1711552291923,-500.0,0.00054794,120]
[320772057,1711552291932,-500.0,0.00054794,120]
[320772058,1711552291941,-500.0,0.00054794,120]
[320772059,1711552291950,-500.0,0.00054794,120]
[320772060,1711552291959,-500.0,0.00054794,120]
[320772061,1711552291968,-500.0,0.00054794,120]
[320772062,1711552291977,-536.12,0.00054794,120]
[320772063,1711552291986,-500.0,0.00054794,120]
[320772064,1711552291996,-500.0,0.00054794,120]
[320772065,1711552292005,-500.0,0.00054794,120]
[320772066,1711552292014,-500.0,0.00054794,120]
[320772067,1711552292024,-500.0,0.00054794,120]
[320772068,1711552292032,-592.05450036,0.00054794,120]
[320772069,1711552292042,-500.0,0.00054794,120]
[320772070,1711552292051,-1352.5,0.00054794,120]
[320772071,1711552292061,-500.0,0.00054794,120]
[320772072,1711552292071,-772.49,0.00054794,120]
[320772073,1711552292080,-507.07846544,0.00054794,120]
[320772074,1711552292089,-500.0,0.00054794,120]
[320772075,1711552292099,-507.38178746,0.00054794,120]
[320772076,1711552292110,-500.0,0.00054794,120]
[320772077,1711552292119,-1703.17,0.00054794,120]
[320772078,1711552292129,-500.0,0.00054794,120]
[320772079,1711552292139,-352.59379325,0.00054794,120]
[320772080,1711552292150,-500.0,0.00054794,120]
[320772081,1711552292162,-2287.25,0.00054794,120]
[320772082,1711552292172,-500.0,0.00054794,120]
[320772083,1711552292181,-500.0,0.00054794,120]
[320772084,1711552292191,-1289.64,0.00054794,120]
[320772085,1711552292201,-500.0,0.00054794,120]
[320772086,1711552292211,-597.41,0.00054794,120]
[320772087,1711552292221,-500.0,0.00054794,120]
[320772088,1711552292231,-500.0,0.00054794,120]
[320772089,1711552292241,-500.0,0.00054794,120]
[320772090,1711552292251,-500.0,0.00054794,120]
[320772091,1711552292261,-500.0,0.00054794,120]
[320772092,1711552292270,-500.0,0.00054794,120]
[320772093,1711552292281,-500.0,0.00054794,120]
[320772094,1711552292290,-1616.69,0.00054794,120]
[320772095,1711552292301,-500.0,0.00054794,120]
[320772096,1711552292311,-500.0,0.00054794,120]
[320772097,1711552292321,-500.0,0.00054794,120]
[320772098,1711552292331,-727.14,0.00054794,120]
[320772099,1711552292341,-500.0,0.00054794,120]
[320772100,1711552292351,-500.0,0.00054794,120]
[320772101,1711552292362,-503.31974638,0.00054794,120]
[320772102,1711552292372,-500.0,0.00054794,120]
[320772103,1711552292381,-500.0,0.00054794,120]
[320772104,1711552292391,-500.0,0.00054794,120]
[320772105,1711552292400,-580.52,0.00054794,120]
[320772106,1711552292410,-500.0,0.00054794,120]
[320772107,1711552292419,-928.97,0.00054794,120]
[320772108,1711552292428,-500.0,0.00054794,120]
[320772109,1711552292438,-500.0,0.00054794,120]
[320772110,1711552292447,-500.0,0.00054794,120]
[320772111,1711552292456,-500.0,0.00054794,120]
[320772112,1711552292466,-500.0,0.00054794,120]
[320772113,1711552292476,-500.0,0.00054794,120]
[320772114,1711552292485,-500.0,0.00054794,120]
[320772115,1711552292494,-500.0,0.00054794,120]
[320772116,1711552292504,-500.0,0.00054794,120]
[320772117,1711552292514,-506.30650068,0.00054794,120]
[320772118,1711552292524,-770.72,0.00054794,120]
[320772119,1711552292534,-1106.38,0.00054794,120]
[320772120,1711552292543,-500.0,0.00054794,120]
[320772121,1711552292553,-500.0,0.00054794,120]
[320772122,1711552292563,-982.0,0.00054794,120]
[320772123,1711552292573,-500.0,0.00054794,120]
[320772124,1711552292583,-500.0,0.00054794,120]
[320772125,1711552292593,-500.0,0.00054794,120]
[320772126,1711552292602,-500.0,0.00054794,120]
[320772127,1711552292614,-504.82876241,0.00054794,120]
[320772128,1711552292625,-500.0,0.00054794,120]
[320772129,1711552292635,-1212.08,0.00054794,120]
[320772130,1711552292644,-1303.57,0.00054794,120]
[320772131,1711552292654,-500.0,0.00054794,120]
[320772132,1711552292664,-500.0,0.00054794,120]
[320772133,1711552292673,-500.0,0.00054794,120]
[320772134,1711552292683,-883.4,0.00054794,120]
[320772135,1711552292695,-500.0,0.00054794,120]
[320772136,1711552292705,-500.0,0.00054794,120]
[320772137,1711552292715,-500.0,0.00054794,120]
[320772138,1711552292724,-500.0,0.00054794,120]
[320772139,1711552292734,-500.0,0.00054794,120]
[320772140,1711552292743,-973.28,0.00054794,120]
[320772141,1711552292753,-500.0,0.00054794,120]
[320772142,1711552292762,-988.59,0.00054794,120]
[320772143,1711552292772,-499.94708624,0.00054794,120]
[320772144,1711552292782,-500.0,0.00054794,120]
[320772145,1711552292791,-1229.44,0.00054794,120]
[320772146,1711552292801,-500.0,0.00054794,120]
[320772147,1711552292811,-506.07727027,0.00054794,120]
[320772148,1711552292820,-742.17,0.00054794,120]
[320772149,1711552292830,-500.0,0.00054794,120]
[320772150,1711552292839,-569.58100806,0.00054794,120]
[320772151,1711552292849,-465.80953064,0.00054794,120]
[320772152,1711552292862,-864.87,0.00054794,120]
[320772153,1711552292871,-500.0,0.00054794,120]
[320772154,1711552292881,-500.0,0.00054794,120]
[320772155,1711552292890,-500.0,0.00054794,120]
[320772156,1711552292900,-500.0,0.00054794,120]
[320772157,1711552292909,-1784.46,0.00054794,120]
[320772158,1711552292918,-1081.95,0.00054794,120]
[320772159,1711552292928,-536.84,0.00054794,120]
[320772160,1711552292938,-500.0,0.00054794,120]
[320772161,1711552292947,-500.0,0.00054794,120]
[320772162,1711552292956,-1437.24,0.00054794,120]
[320772163,1711552292966,-500.0,0.00054794,120]
[320772164,1711552292976,-500.0,0.00054794,120]
[320772165,1711552292985,-547.36,0.00054794,120]
[320772166,1711552292995,-500.0,0.00054794,120]
[320772167,1711552293005,-725.74,0.00054794,120]
[320772168,1711552293014,-657.32,0.00054794,120]
[320772169,1711552293023,-500.0,0.00054794,120]
[320772170,1711552293033,-500.0,0.00054794,120]
[320772171,1711552293042,-784.02,0.00054794,120]
[320772172,1711552293052,-682.88,0.00054794,60]
[320772173,1711552293062,-500.0,0.00054794,120]
[320772174,1711552293071,-507.64092668,0.00054794,120]
[320772175,1711552293081,-500.0,0.00054794,120]
[320772176,1711552293090,-500.0,0.00054794,120]
[320772177,1711552293099,-1226.26,0.00054794,120]
[320772178,1711552293110,-500.0,0.00054794,120]
[320772179,1711552293120,-642.33,0.00054794,120]
[320772180,1711552293131,-528.21,0.00054794,120]
[320772181,1711552293143,-816.2,0.00054794,120]
[320772182,1711552293156,-510.78105427,0.00054794,120]
[320772183,1711552293166,-501.36,0.00054794,120]
[320772184,1711552293355,-500.0,0.00054794,120]
[320772185,1711552293367,-500.0,0.00054794,120]
[320772186,1711552293377,-583.5,0.00054794,120]
[320772187,1711552293386,-500.0,0.00054794,2]
[320772188,1711552293396,-556.33,0.00054794,120]
[320772189,1711552293406,-2170.99,0.00054794,120]
[320772190,1711552293416,-535.39,0.00054794,120]
[320772191,1711552293426,-500.0,0.00054794,120]
[320772192,1711552293436,-500.0,0.00054794,120]
[320772193,1711552293446,-406.511796,0.00054794,120]
[320772194,1711552293455,-1871.67,0.00054794,120]
[320772195,1711552293465,-500.0,0.00054794,120]
[320772196,1711552293476,-1822.98,0.00054794,120]
[320772197,1711552293485,-151.0,0.00054794,120]
[320772198,1711552293495,-500.0,0.00054794,120]
[320772199,1711552293505,-500.0,0.00054794,120]
[320772200,1711552293525,-406.511796,0.00054794,120]
[320772201,1711552293537,-505.78439773,0.00054794,120]
[320772202,1711552293548,-500.0,0.00054794,120]
[320772203,1711552293559,-500.0,0.00054794,120]
[320772204,1711552293570,-500.0,0.00054794,120]
[320772205,1711552293581,-500.0,0.00054794,120]
[320772206,1711552293591,-505.48143768,0.00054794,120]
[320772207,1711552293602,-500.0,0.00054794,120]
[320772208,1711552293615,-500.0,0.00054794,120]
[320772209,1711552293625,-500.0,0.00054794,120]
[320772210,1711552293636,-500.0,0.00054794,120]
[320772211,1711552293646,-500.0,0.00054794,120]
[320772212,1711552293656,-500.0,0.00054794,120]
[320772213,1711552293667,-500.0,0.00054794,120]
[320772214,1711552293678,-500.0,0.00054794,120]
[320772215,1711552293688,-1000.0,0.00054794,120]
[320772216,1711552293698,-1073.97,0.00054794,120]
[320772217,1711552293708,-526.05,0.00054794,120]
[320772218,1711552293718,-601.646655,0.00054794,120]
[320772219,1711552293727,-1103.15,0.00054794,120]
[320772220,1711552293737,-500.0,0.00054794,120]
[320772221,1711552293747,-544.99,0.00054794,120]
[320772222,1711552293756,-469.446104,0.00054794,120]
[320772223,1711552293766,-500.0,0.00054794,120]
[320772224,1711552293776,-981.66,0.00054794,120]
[320772225,1711552293785,-601.646655,0.00054794,120]
[320772226,1711552293795,-500.0,0.00054794,120]
[320772227,1711552293805,-958.82,0.00054794,120]
[320772228,1711552293815,-282.3334,0.00054794,120]
[320772229,1711552293825,-500.0,0.00054794,120]
[320772230,1711552293835,-469.446104,0.00054794,120]
[320772231,1711552293845,-382.776007,0.00054794,120]
[320772232,1711552293854,-500.0,0.00054794,120]
[320772233,1711552293865,-500.0,0.00054794,120]
[320772234,1711552293875,-500.0,0.00054794,120]
[320772235,1711552293885,-500.0,0.00054794,120]
[320772236,1711552293895,-500.0,0.00054794,120]
[320772237,1711552293904,-500.0,0.00054794,120]
[320772238,1711552293914,-382.776007,0.00054794,120]
[320772239,1711552293924,-500.0,0.00054794,120]
[320772240,1711552293933,-500.0,0.00054794,120]
[320772241,1711552293943,-500.0,0.00054794,120]
[320772242,1711552293952,-500.0,0.00054794,120]
[320772243,1711552293962,-500.0,0.00054794,120]
[320772244,1711552293971,-500.0,0.00054794,120]
[320772245,1711552293981,-500.0,0.00054794,120]
[320772246,1711552293991,-1261.44,0.00054794,120]
[320772247,1711552294000,-500.0,0.00054794,120]
[320772248,1711552294010,-243.855652,0.00054794,120]
[320772249,1711552294019,-500.0,0.00054794,120]
[320772250,1711552294029,-1234.9,0.00054794,120]
[320772251,1711552294039,-500.0,0.00054794,120]
[320772252,1711552294048,-500.0,0.00054794,120]
[320772253,1711552294058,-819.15,0.00054794,120]
[320772254,1711552294068,-500.0,0.00054794,120]
[320772255,1711552294078,-243.855652,0.00054794,120]
[320772256,1711552294087,-500.0,0.00054794,120]
[320772257,1711552294097,-500.0,0.00054794,120]
[320772258,1711552294108,-500.0,0.00054794,120]
[320772259,1711552294118,-500.0,0.00054794,120]
[320772260,1711552294127,-506.25682925,0.00054794,120]
[320772261,1711552294138,-937.899088,0.00054794,120]
[320772262,1711552294150,-516.12522934,0.00054794,120]
[320772263,1711552294159,-500.0,0.00054794,120]
[320772264,1711552294169,-500.0,0.00054794,120]
[320772265,1711552294179,-500.0,0.00054794,120]
[320772266,1711552294188,-616.83,0.00054794,120]
[320772267,1711552294198,-500.0,0.00054794,120]
[320772268,1711552294207,-1682.28,0.00054794,120]
[320772269,1711552294217,-500.0,0.00054794,120]
[320772270,1711552294228,-937.899088,0.00054794,120]
[320772271,1711552294238,-151.0,0.00054794,7]
[320772272,1711552294248,-500.0,0.00054794,120]
[320772273,1711552294257,-978.04,0.00054794,30]
[320772274,1711552294267,-500.0,0.00054794,120]
[320772275,1711552294276,-500.0,0.00054794,120]
[320772276,1711552294286,-500.0,0.00054794,120]
[320772277,1711552294296,-500.0,0.00054794,120]
[320772278,1711552294306,-500.0,0.00054794,120]
[320772279,1711552294316,-500.0,0.00054794,120]
[320772280,1711552294325,-500.0,0.00054794,120]
[320772281,1711552294335,-888.0,0.00054794,120]
[320772282,1711552294346,-1000.0,0.00054794,120]
[320772283,1711552294356,-1000.0,0.00054794,120]
[320772284,1711552294371,-888.0,0.00054794,120]
[320772285,1711552294380,-500.0,0.00054794,120]
[320772286,1711552294390,-1000.0,0.00054794,120]
[320772287,1711552294400,-1000.0,0.00054794,120]
[320772288,1711552294411,-888.0,0.00054794,120]
[320772289,1711552294421,-1000.0,0.00054794,120]
[320772290,1711552294432,-500.0,0.00054794,120]
[320772291,1711552294443,-1000.0,0.00054794,120]
[320772292,1711552294455,-1000.0,0.00054794,120]
[320772293,1711552294468,-504.85794492,0.00054794,120]
[320772294,1711552294479,-1000.0,0.00054794,120]
[320772295,1711552294490,-1000.0,0.00054794,120]
[320772296,1711552294500,-1001.26615809,0.00054794,120]
[320772297,1711552294510,-500.0,0.00054794,120]
[320772298,1711552294521,-615.29,0.00054794,120]
[320772299,1711552294531,-3944.07,0.00054794,120]
[320772300,1711552294542,-500.0,0.00054794,120]
[320772301,1711552294551,-500.0,0.00054794,120]
[320772302,1711552294561,-500.0,0.00054794,120]
[320772303,1711552294571,-500.0,0.00054794,120]
[320772304,1711552294581,-756.7,0.00054794,120]
[320772305,1711552294591,-500.0,0.00054794,120]
[320772306,1711552294601,-507.83852995,0.00054794,120]
[320772307,1711552294616,-500.0,0.00054794,120]
[320772308,1711552294626,-500.0,0.00054794,120]
[320772309,1711552294635,-151.0,0.00054794,120]
[320772310,1711552294645,-500.0,0.00054794,120]
[320772311,1711552294655,-757.74,0.00054794,120]
[320772312,1711552294665,-500.0,0.00054794,120]
[320772313,1711552294676,-500.0,0.00054794,120]
[320772314,1711552294686,-732.25,0.00054794,120]
[320772315,1711552294696,-500.0,0.00054794,120]
[320772316,1711552294706,-500.0,0.00054794,120]
[320772317,1711552294715,-1663.15,0.00054794,120]
[320772318,1711552294725,-500.0,0.00054794,120]
[320772319,1711552294735,-500.0,0.00054794,120]
[320772320,1711552294745,-500.0,0.00054794,120]
[320772321,1711552294755,-152.593239,0.00054794,120]
[320772322,1711552294765,-151.0,0.00054794,120]
[320772323,1711552294778,-500.0,0.00054794,120]
[320772324,1711552294789,-500.0,0.00054794,60]
[320772325,1711552294800,-500.0,0.00054794,120]
[320772326,1711552294812,-500.0,0.00054794,120]
[320772327,1711552294823,-500.0,0.00054794,120]
[320772328,1711552294833,-1953.73,0.00054794,120]
[320772329,1711552294843,-1065.51,0.00054794,120]
[320772330,1711552294855,-500.0,0.00054794,120]
[320772331,1711552294867,-505.78187246,0.00054794,120]
[320772332,1711552294876,-500.0,0.00054794,120]
[320772333,1711552294886,-500.0,0.00054794,120]
[320772334,1711552294896,-500.0,0.00054794,120]
[320772335,1711552294906,-500.0,0.00054794,120]
[320772336,1711552294916,-1812.7,0.00054794,120]
[320772337,1711552294926,-500.0,0.00054794,120]
[320772338,1711552294936,-644.99,0.00054794,120]
[320772339,1711552294946,-506.15246699,0.00054794,120]
[320772340,1711552294956,-500.0,0.00054794,120]
[320772341,1711552294965,-500.0,0.00054794,120]
[320772342,1711552294975,-500.0,0.00054794,120]
[320772343,1711552294986,-500.0,0.00054794,120]
[320772344,1711552294996,-1000.2,0.00054794,120]
[320772345,1711552295006,-1119.79,0.00054794,120]
[320772346,1711552295016,-500.0,0.00054794,120]
[320772347,1711552295026,-500.0,0.00054794,120]
[320772348,1711552295037,-500.0,0.00054794,120]
[320772349,1711552295048,-500.0,0.00054794,120]
[320772350,1711552295058,-500.0,0.00054794,120]
[320772351,1711552295068,-500.0,0.00054794,120]
[320772352,1711552295079,-500.0,0.00054794,120]
[320772353,1711552295089,-1863.91,0.00054794,120]
[320772354,1711552295100,-614.78,0.00054794,120]
[320772355,1711552295113,-500.0,0.00054794,120]
[320772356,1711552295123,-500.0,0.00054794,120]
[320772357,1711552295134,-500.0,0.00054794,120]
[320772358,1711552295145,-1000.0,0.00054794,120]
[320772359,1711552295157,-1000.0,0.00054794,120]
[320772360,1711552295167,-1000.0,0.00054794,120]